{"text_format":"3","workbook":"xlsx","n_sheets":1,"sheets":["Elenco inventario"],"not_rendered":{"defined_names":3},"read":"whole","date_system":"1900"}

{"sheet":"Elenco inventario","index":0,"n_rows":28,"n_cols":12,"rows_kept":28,"merged":[[0,2,0,4],[0,5,0,6]]}
[null,null,"Elenco inventario",null,null,"Evidenziare gli articoli da riordinare?",null,"Sì"]
[]
[null,"Articoli contrassegnati da riordinare","ID inventario","Nome","Descrizione","Prezzo unitario","Quantità in magazzino","Valore inventario","Livello di riordino","Tempo di riordino in giorni","Quantità in riordino","Fuori produzione?"]
[null,{"$f":"IFERROR((ElencoInventario[[#This Row],[Quantità in magazzino]]<=ElencoInventario[[#This Row],[Livello di riordino]])*(ElencoInventario[[#This Row],[Fuori produzione?]]=\"\")*valHighlight,0)","v":1},"IN0001","Articolo 1","Descrizione 1",{"v":51,"d":"€ 51.00"},25,{"$f":"ElencoInventario[[#This Row],[Prezzo unitario]]*ElencoInventario[[#This Row],[Quantità in magazzino]]","v":{"v":1275,"d":"€ 1,275.00"}},29,13,50,""]
[null,{"$f":"IFERROR((ElencoInventario[[#This Row],[Quantità in magazzino]]<=ElencoInventario[[#This Row],[Livello di riordino]])*(ElencoInventario[[#This Row],[Fuori produzione?]]=\"\")*valHighlight,0)","v":1},"IN0002","Articolo 2","Descrizione 2",{"v":93,"d":"€ 93.00"},132,{"$f":"ElencoInventario[[#This Row],[Prezzo unitario]]*ElencoInventario[[#This Row],[Quantità in magazzino]]","v":{"v":12276,"d":"€ 12,276.00"}},231,4,50,""]
[null,{"$f":"IFERROR((ElencoInventario[[#This Row],[Quantità in magazzino]]<=ElencoInventario[[#This Row],[Livello di riordino]])*(ElencoInventario[[#This Row],[Fuori produzione?]]=\"\")*valHighlight,0)","v":0},"IN0003","Articolo 3","Descrizione 3",{"v":57,"d":"€ 57.00"},151,{"$f":"ElencoInventario[[#This Row],[Prezzo unitario]]*ElencoInventario[[#This Row],[Quantità in magazzino]]","v":{"v":8607,"d":"€ 8,607.00"}},114,11,150,""]
[null,{"$f":"IFERROR((ElencoInventario[[#This Row],[Quantità in magazzino]]<=ElencoInventario[[#This Row],[Livello di riordino]])*(ElencoInventario[[#This Row],[Fuori produzione?]]=\"\")*valHighlight,0)","v":0},"IN0004","Articolo 4","Descrizione 4",{"v":19,"d":"€ 19.00"},186,{"$f":"ElencoInventario[[#This Row],[Prezzo unitario]]*ElencoInventario[[#This Row],[Quantità in magazzino]]","v":{"v":3534,"d":"€ 3,534.00"}},158,6,50,""]
[null,{"$f":"IFERROR((ElencoInventario[[#This Row],[Quantità in magazzino]]<=ElencoInventario[[#This Row],[Livello di riordino]])*(ElencoInventario[[#This Row],[Fuori produzione?]]=\"\")*valHighlight,0)","v":0},"IN0005","Articolo 5","Descrizione 5",{"v":75,"d":"€ 75.00"},62,{"$f":"ElencoInventario[[#This Row],[Prezzo unitario]]*ElencoInventario[[#This Row],[Quantità in magazzino]]","v":{"v":4650,"d":"€ 4,650.00"}},39,12,50,""]
[null,{"$f":"IFERROR((ElencoInventario[[#This Row],[Quantità in magazzino]]<=ElencoInventario[[#This Row],[Livello di riordino]])*(ElencoInventario[[#This Row],[Fuori produzione?]]=\"\")*valHighlight,0)","v":1},"IN0006","Articolo 6","Descrizione 6",{"v":11,"d":"€ 11.00"},5,{"$f":"ElencoInventario[[#This Row],[Prezzo unitario]]*ElencoInventario[[#This Row],[Quantità in magazzino]]","v":{"v":55,"d":"€ 55.00"}},9,13,150,""]
[null,{"$f":"IFERROR((ElencoInventario[[#This Row],[Quantità in magazzino]]<=ElencoInventario[[#This Row],[Livello di riordino]])*(ElencoInventario[[#This Row],[Fuori produzione?]]=\"\")*valHighlight,0)","v":0},"IN0007","Articolo 7","Descrizione 7",{"v":56,"d":"€ 56.00"},58,{"$f":"ElencoInventario[[#This Row],[Prezzo unitario]]*ElencoInventario[[#This Row],[Quantità in magazzino]]","v":{"v":3248,"d":"€ 3,248.00"}},109,7,100,"sì"]
[null,{"$f":"IFERROR((ElencoInventario[[#This Row],[Quantità in magazzino]]<=ElencoInventario[[#This Row],[Livello di riordino]])*(ElencoInventario[[#This Row],[Fuori produzione?]]=\"\")*valHighlight,0)","v":1},"IN0008","Articolo 8","Descrizione 8",{"v":38,"d":"€ 38.00"},101,{"$f":"ElencoInventario[[#This Row],[Prezzo unitario]]*ElencoInventario[[#This Row],[Quantità in magazzino]]","v":{"v":3838,"d":"€ 3,838.00"}},162,3,100,""]
[null,{"$f":"IFERROR((ElencoInventario[[#This Row],[Quantità in magazzino]]<=ElencoInventario[[#This Row],[Livello di riordino]])*(ElencoInventario[[#This Row],[Fuori produzione?]]=\"\")*valHighlight,0)","v":0},"IN0009","Articolo 9","Descrizione 9",{"v":59,"d":"€ 59.00"},122,{"$f":"ElencoInventario[[#This Row],[Prezzo unitario]]*ElencoInventario[[#This Row],[Quantità in magazzino]]","v":{"v":7198,"d":"€ 7,198.00"}},82,3,150,""]
[null,{"$f":"IFERROR((ElencoInventario[[#This Row],[Quantità in magazzino]]<=ElencoInventario[[#This Row],[Livello di riordino]])*(ElencoInventario[[#This Row],[Fuori produzione?]]=\"\")*valHighlight,0)","v":1},"IN0010","Articolo 10","Descrizione 10",{"v":50,"d":"€ 50.00"},175,{"$f":"ElencoInventario[[#This Row],[Prezzo unitario]]*ElencoInventario[[#This Row],[Quantità in magazzino]]","v":{"v":8750,"d":"€ 8,750.00"}},283,8,150,""]
[null,{"$f":"IFERROR((ElencoInventario[[#This Row],[Quantità in magazzino]]<=ElencoInventario[[#This Row],[Livello di riordino]])*(ElencoInventario[[#This Row],[Fuori produzione?]]=\"\")*valHighlight,0)","v":1},"IN0011","Articolo 11","Descrizione 11",{"v":59,"d":"€ 59.00"},176,{"$f":"ElencoInventario[[#This Row],[Prezzo unitario]]*ElencoInventario[[#This Row],[Quantità in magazzino]]","v":{"v":10384,"d":"€ 10,384.00"}},229,1,100,""]
[null,{"$f":"IFERROR((ElencoInventario[[#This Row],[Quantità in magazzino]]<=ElencoInventario[[#This Row],[Livello di riordino]])*(ElencoInventario[[#This Row],[Fuori produzione?]]=\"\")*valHighlight,0)","v":1},"IN0012","Articolo 12","Descrizione 12",{"v":18,"d":"€ 18.00"},22,{"$f":"ElencoInventario[[#This Row],[Prezzo unitario]]*ElencoInventario[[#This Row],[Quantità in magazzino]]","v":{"v":396,"d":"€ 396.00"}},36,12,50,""]
[null,{"$f":"IFERROR((ElencoInventario[[#This Row],[Quantità in magazzino]]<=ElencoInventario[[#This Row],[Livello di riordino]])*(ElencoInventario[[#This Row],[Fuori produzione?]]=\"\")*valHighlight,0)","v":1},"IN0013","Articolo 13","Descrizione 13",{"v":26,"d":"€ 26.00"},72,{"$f":"ElencoInventario[[#This Row],[Prezzo unitario]]*ElencoInventario[[#This Row],[Quantità in magazzino]]","v":{"v":1872,"d":"€ 1,872.00"}},102,9,100,""]
[null,{"$f":"IFERROR((ElencoInventario[[#This Row],[Quantità in magazzino]]<=ElencoInventario[[#This Row],[Livello di riordino]])*(ElencoInventario[[#This Row],[Fuori produzione?]]=\"\")*valHighlight,0)","v":1},"IN0014","Articolo 14","Descrizione 14",{"v":42,"d":"€ 42.00"},62,{"$f":"ElencoInventario[[#This Row],[Prezzo unitario]]*ElencoInventario[[#This Row],[Quantità in magazzino]]","v":{"v":2604,"d":"€ 2,604.00"}},83,2,100,""]
[null,{"$f":"IFERROR((ElencoInventario[[#This Row],[Quantità in magazzino]]<=ElencoInventario[[#This Row],[Livello di riordino]])*(ElencoInventario[[#This Row],[Fuori produzione?]]=\"\")*valHighlight,0)","v":0},"IN0015","Articolo 15","Descrizione 15",{"v":32,"d":"€ 32.00"},46,{"$f":"ElencoInventario[[#This Row],[Prezzo unitario]]*ElencoInventario[[#This Row],[Quantità in magazzino]]","v":{"v":1472,"d":"€ 1,472.00"}},23,15,50,""]
[null,{"$f":"IFERROR((ElencoInventario[[#This Row],[Quantità in magazzino]]<=ElencoInventario[[#This Row],[Livello di riordino]])*(ElencoInventario[[#This Row],[Fuori produzione?]]=\"\")*valHighlight,0)","v":1},"IN0016","Articolo 16","Descrizione 16",{"v":90,"d":"€ 90.00"},96,{"$f":"ElencoInventario[[#This Row],[Prezzo unitario]]*ElencoInventario[[#This Row],[Quantità in magazzino]]","v":{"v":8640,"d":"€ 8,640.00"}},180,3,50,""]
[null,{"$f":"IFERROR((ElencoInventario[[#This Row],[Quantità in magazzino]]<=ElencoInventario[[#This Row],[Livello di riordino]])*(ElencoInventario[[#This Row],[Fuori produzione?]]=\"\")*valHighlight,0)","v":0},"IN0017","Articolo 17","Descrizione 17",{"v":97,"d":"€ 97.00"},57,{"$f":"ElencoInventario[[#This Row],[Prezzo unitario]]*ElencoInventario[[#This Row],[Quantità in magazzino]]","v":{"v":5529,"d":"€ 5,529.00"}},98,12,50,"Sì"]
[null,{"$f":"IFERROR((ElencoInventario[[#This Row],[Quantità in magazzino]]<=ElencoInventario[[#This Row],[Livello di riordino]])*(ElencoInventario[[#This Row],[Fuori produzione?]]=\"\")*valHighlight,0)","v":1},"IN0018","Articolo 18","Descrizione 18",{"v":12,"d":"€ 12.00"},6,{"$f":"ElencoInventario[[#This Row],[Prezzo unitario]]*ElencoInventario[[#This Row],[Quantità in magazzino]]","v":{"v":72,"d":"€ 72.00"}},7,13,50,""]
[null,{"$f":"IFERROR((ElencoInventario[[#This Row],[Quantità in magazzino]]<=ElencoInventario[[#This Row],[Livello di riordino]])*(ElencoInventario[[#This Row],[Fuori produzione?]]=\"\")*valHighlight,0)","v":1},"IN0019","Articolo 19","Descrizione 19",{"v":82,"d":"€ 82.00"},143,{"$f":"ElencoInventario[[#This Row],[Prezzo unitario]]*ElencoInventario[[#This Row],[Quantità in magazzino]]","v":{"v":11726,"d":"€ 11,726.00"}},164,12,150]
[null,{"$f":"IFERROR((ElencoInventario[[#This Row],[Quantità in magazzino]]<=ElencoInventario[[#This Row],[Livello di riordino]])*(ElencoInventario[[#This Row],[Fuori produzione?]]=\"\")*valHighlight,0)","v":0},"IN0020","Articolo 20","Descrizione 20",{"v":16,"d":"€ 16.00"},124,{"$f":"ElencoInventario[[#This Row],[Prezzo unitario]]*ElencoInventario[[#This Row],[Quantità in magazzino]]","v":{"v":1984,"d":"€ 1,984.00"}},113,14,50,""]
[null,{"$f":"IFERROR((ElencoInventario[[#This Row],[Quantità in magazzino]]<=ElencoInventario[[#This Row],[Livello di riordino]])*(ElencoInventario[[#This Row],[Fuori produzione?]]=\"\")*valHighlight,0)","v":0},"IN0021","Articolo 21","Descrizione 21",{"v":19,"d":"€ 19.00"},112,{"$f":"ElencoInventario[[#This Row],[Prezzo unitario]]*ElencoInventario[[#This Row],[Quantità in magazzino]]","v":{"v":2128,"d":"€ 2,128.00"}},75,11,50,""]
[null,{"$f":"IFERROR((ElencoInventario[[#This Row],[Quantità in magazzino]]<=ElencoInventario[[#This Row],[Livello di riordino]])*(ElencoInventario[[#This Row],[Fuori produzione?]]=\"\")*valHighlight,0)","v":0},"IN0022","Articolo 22","Descrizione 22",{"v":24,"d":"€ 24.00"},182,{"$f":"ElencoInventario[[#This Row],[Prezzo unitario]]*ElencoInventario[[#This Row],[Quantità in magazzino]]","v":{"v":4368,"d":"€ 4,368.00"}},132,15,150,""]
[null,{"$f":"IFERROR((ElencoInventario[[#This Row],[Quantità in magazzino]]<=ElencoInventario[[#This Row],[Livello di riordino]])*(ElencoInventario[[#This Row],[Fuori produzione?]]=\"\")*valHighlight,0)","v":0},"IN0023","Articolo 23","Descrizione 23",{"v":29,"d":"€ 29.00"},106,{"$f":"ElencoInventario[[#This Row],[Prezzo unitario]]*ElencoInventario[[#This Row],[Quantità in magazzino]]","v":{"v":3074,"d":"€ 3,074.00"}},142,1,150,"Sì"]
[null,{"$f":"IFERROR((ElencoInventario[[#This Row],[Quantità in magazzino]]<=ElencoInventario[[#This Row],[Livello di riordino]])*(ElencoInventario[[#This Row],[Fuori produzione?]]=\"\")*valHighlight,0)","v":0},"IN0024","Articolo 24","Descrizione 24",{"v":75,"d":"€ 75.00"},173,{"$f":"ElencoInventario[[#This Row],[Prezzo unitario]]*ElencoInventario[[#This Row],[Quantità in magazzino]]","v":{"v":12975,"d":"€ 12,975.00"}},127,9,100,""]
[null,{"$f":"IFERROR((ElencoInventario[[#This Row],[Quantità in magazzino]]<=ElencoInventario[[#This Row],[Livello di riordino]])*(ElencoInventario[[#This Row],[Fuori produzione?]]=\"\")*valHighlight,0)","v":0},"IN0025","Articolo 25","Descrizione 25",{"v":14,"d":"€ 14.00"},28,{"$f":"ElencoInventario[[#This Row],[Prezzo unitario]]*ElencoInventario[[#This Row],[Quantità in magazzino]]","v":{"v":392,"d":"€ 392.00"}},21,8,50,""]